bitfinex/quotes_ETHUSD_20250904
["timestamp","ask_amount","ask_price","bid_price","bid_amount"]
[1756944000335,1e-08,4456.7,4456.6,0.43370237]
[1756944000633,1e-08,4456.7,4456.6,0.13740237]
[1756944000934,0.29960001,4456.7,4456.3,0.08992371]
[1756944001300,1e-08,4456.7,4456.3,0.08992371]
[1756944001502,1e-08,4456.7,4456.4,0.81443963]
[1756944001726,1e-08,4456.7,4456.4,0.792]
[1756944002040,1e-08,4456.7,4456.6,0.792]
[1756944002238,1e-08,4456.7,4456.6,0.793]
[1756944002402,0.09900001,4456.7,4456.6,0.793]
[1756944002606,0.56620001,4456.7,4456.6,0.001]
[1756944002819,1.21323977,4456.7,4456.1,0.001]
[1756944003139,0.27333976,4456.6,4455.8,0.001]
[1756944003647,0.2996,4455.9,4455.8,0.001]
[1756944004009,0.9419,4455.9,4455.8,0.001]
[1756944004534,0.7668,4455.9,4455.8,0.001]
[1756944005038,0.2996,4455.9,4455.8,0.001]
[1756944005425,1e-08,4456.7,4455.9,0.792]
[1756944005631,1e-08,4456.7,4456.1,0.792]
[1756944005834,1e-08,4456.7,4456.0,0.37942]
[1756944006012,1e-08,4456.7,4456.2,0.792]
[1756944006208,1e-08,4456.7,4456.3,0.792]
[1756944006551,1e-08,4456.7,4456.6,2.54016303]
[1756944006725,1e-08,4456.7,4456.6,2.56260166]
[1756944006923,1e-08,4456.7,4456.6,2.67460166]
[1756944007230,1e-08,4456.7,4456.6,6.10686303]
[1756944007989,1e-08,4456.7,4456.6,0.112]
[1756944007990,0.93990001,4456.7,4456.6,0.112]
[1756944008163,0.93990001,4456.7,4456.3,3.751]
[1756944008457,2.24396373,4456.4,4456.3,3.751]
[1756944008748,0.9399,4456.4,4456.3,3.751]
[1756944008923,0.9399,4456.4,4456.2,3.751]
[1756944009118,0.1017,4456.4,4456.2,3.751]
[1756944010340,0.5689,4456.4,4456.2,3.751]
[1756944011043,0.4672,4456.3,4456.2,3.751]
[1756944011247,0.5716,4456.3,4456.2,3.751]
[1756944012015,0.1044,4456.3,4456.2,3.751]
[1756944012344,1e-08,4456.7,4456.2,4.5041]
[1756944012543,1e-08,4456.7,4456.5,0.112]
[1756944012915,1e-08,4456.7,4456.6,0.88753863]
[1756944013120,1e-08,4456.7,4456.6,0.112]
[1756944013317,0.94190001,4456.7,4456.6,3.751]
[1756944013751,1e-08,4456.7,4456.6,4.0473]
[1756944014050,1e-08,4456.7,4456.6,4.5041]
[1756944014548,1e-08,4456.7,4456.6,4.0473]
[1756944015151,1e-08,4456.7,4456.6,7.24186303]
[1756944015357,1e-08,4456.7,4456.6,8.14586303]
[1756944015539,1e-08,4456.7,4456.6,9.19383757]
[1756944015924,1e-08,4456.7,4456.6,9.28375663]
[1756944016146,1e-08,4456.7,4456.6,4.58205663]
[1756944016448,1e-08,4456.7,4456.6,8.23678209]
[1756944018344,1e-08,4456.7,4456.6,8.14686303]
[1756944018539,1e-08,4456.7,4456.6,6.90086303]
[1756944018727,0.29960001,4456.7,4456.6,6.90086303]
[1756944018934,0.29830001,4456.7,4456.6,4.657]
[1756944019142,0.29830001,4456.7,4456.6,3.865]
[1756944019348,1e-08,4456.7,4456.6,3.865]
[1756944019552,0.09900001,4456.7,4456.6,3.865]
[1756944020359,1e-08,4456.7,4456.6,3.865]
[1756944021391,1e-08,4456.7,4456.6,6.10886303]
[1756944021689,1e-08,4456.7,4456.6,8.19115032]
[1756944022050,1e-08,4456.7,4456.6,8.98315032]
[1756944024962,1e-08,4456.7,4456.6,8.03245032]
[1756944025677,1e-08,4456.7,4456.6,8.48925032]
[1756944026271,0.29960001,4456.7,4456.6,6.10886303]
[1756944026669,1e-08,4456.7,4456.6,6.10886303]
[1756944028345,1e-08,4456.7,4456.6,6.40516303]
[1756944028574,1e-08,4456.7,4456.6,6.86196303]
[1756944030548,1e-08,4456.7,4456.6,7.08686303]
[1756944031866,1e-08,4456.7,4456.6,6.63006303]
[1756944032577,1e-08,4456.7,4456.6,6.28901769]
[1756944033047,0.09900001,4456.7,4456.6,0.112]
[1756944033249,0.57180001,4456.7,4456.1,0.001]
[1756944033468,0.94550001,4456.7,4456.4,0.112]
[1756944033671,0.3737,4456.6,4456.5,3.752]
[1756944033864,0.9482,4456.6,4456.5,3.752]
[1756944034259,0.5745,4456.6,4456.5,3.752]
[1756944034678,1e-08,4456.7,4456.5,3.752]
[1756944034884,1e-08,4456.7,4456.6,0.02243863]
[1756944035252,2.2439845,4456.4,4456.1,0.001]
[1756944035454,0.6618,4456.3,4456.2,3.751]
[1756944035683,0.9464,4456.3,4456.2,3.751]
[1756944035877,0.7574,4456.3,4456.2,3.751]
[1756944036262,3.00141409,4456.3,4456.2,3.751]
[1756944036485,2.24406444,4456.2,4456.1,0.001]
[1756944036691,2.24406444,4456.2,4456.1,3.755]
[1756944036988,3.19136444,4456.2,4456.1,3.755]
[1756944037754,1e-08,4456.7,4456.1,3.755]
[1756944038184,1e-08,4456.7,4456.1,4.22734114]
[1756944038482,1e-08,4456.7,4456.6,0.2996]
[1756944038784,1e-08,4456.7,4456.6,6.29946303]
[1756944038985,1e-08,4456.7,4456.6,7.22806303]
[1756944039659,1e-08,4456.7,4456.6,8.17526431]
[1756944039859,1e-08,4456.7,4456.6,8.96726431]
[1756944043589,1e-08,4456.7,4456.6,9.19216431]
[1756944043988,1e-08,4456.7,4456.6,5.43616431]
[1756944044299,1e-08,4456.7,4456.6,9.19216431]
[1756944045384,1e-08,4456.7,4456.6,9.30416431]
[1756944045977,1e-08,4456.7,4456.6,12.30416431]
[1756944047778,1e-08,4456.7,4456.6,7.84456431]
[1756944047976,1e-08,4456.7,4456.6,12.07826431]
[1756944053701,0.09900001,4456.7,4456.6,6.30406431]
[1756944053981,0.09900001,4456.7,4456.6,6.10986303]
[1756944054205,1e-08,4456.7,4456.6,6.90186303]
[1756944054407,1e-08,4456.7,4456.6,6.10986303]
[1756944055124,1e-08,4456.7,4456.6,7.20146303]
[1756944055286,1e-08,4456.7,4456.6,7.87626303]
[1756944055888,1e-08,4456.7,4456.6,7.42636303]
[1756944056195,1e-08,4456.7,4456.6,7.12676303]
[1756944056514,1e-08,4456.7,4456.6,7.87626303]
[1756944060807,1e-08,4456.7,4456.6,4.12326303]
[1756944061013,1e-08,4456.7,4456.6,7.89770166]
[1756944061333,1e-08,4456.7,4456.6,9.81132817]
[1756944061499,1e-08,4456.7,4456.6,9.92332817]
[1756944061704,1e-08,4456.7,4456.6,12.92332817]
[1756944070653,1e-08,4456.7,4456.6,14.64832817]
[1756944071441,1e-08,4456.7,4456.6,13.70362817]
[1756944071759,1e-08,4456.7,4456.6,14.15842817]
[1756944071969,1e-08,4456.7,4456.6,14.64832817]
[1756944074680,1e-08,4456.7,4456.6,14.73823207]
[1756944082995,1e-08,4456.8,4456.7,6.26071268]
[1756944083194,1e-08,4456.8,4456.7,9.47332065]
[1756944083399,1e-08,4456.8,4456.7,9.76912065]
[1756944083565,1e-08,4456.8,4456.7,9.85902254]
[1756944085000,1e-08,4457.1,4457.0,3.26056165]
[1756944085198,1e-08,4457.1,4457.0,11.57964291]
[1756944085402,1e-08,4457.1,4457.0,12.7977063]
[1756944085603,1e-08,4457.1,4457.0,12.88759646]
[1756944085971,1e-08,4457.1,4457.0,8.19289646]
[1756944086184,0.09900001,4457.1,4457.0,11.64709646]
[1756944086383,1e-08,4457.1,4457.0,12.39769646]
[1756944086875,1e-08,4457.1,4457.0,12.88759646]
[1756944090101,0.002,4457.2,4457.0,12.88759646]
[1756944090399,1e-08,4457.3,4457.2,6.26046097]
[1756944090567,1e-08,4457.3,4457.2,10.01046097]
[1756944090771,1e-08,4457.3,4457.2,11.25746097]
[1756944091202,1e-08,4457.3,4457.2,11.34734871]
[1756944092193,0.002,4457.7,4457.6,3.26025965]
[1756944092396,0.002,4457.7,4457.6,12.3827192]
[1756944092720,0.002,4457.7,4457.6,13.71928561]
[1756944092875,0.002,4457.7,4457.6,14.39340579]
[1756944093702,0.002,4457.7,4457.6,13.91420579]
[1756944093902,0.002,4457.7,4457.6,13.14640579]
[1756944094618,0.002,4457.7,4457.6,13.45850579]
[1756944094911,0.002,4457.7,4457.6,13.14640579]
[1756944095089,0.002,4457.7,4457.6,13.45850579]
[1756944095273,0.002,4457.7,4457.6,13.14640579]
[1756944095478,0.101,4457.7,4457.6,13.14640579]
[1756944095676,0.002,4457.7,4457.6,13.91420579]
[1756944096614,0.002,4457.7,4457.6,14.39340579]
[1756944097883,1e-08,4457.8,4457.7,6.26020932]
[1756944098078,1e-08,4457.8,4457.7,9.08312389]
[1756944098280,1e-08,4457.8,4457.7,9.39522389]
[1756944098485,1e-08,4457.8,4457.7,9.86632389]
[1756944098905,1e-08,4457.8,4457.7,8.61932389]
[1756944099897,1e-08,4457.8,4457.7,8.93142389]
[1756944100108,1e-08,4457.8,4457.7,9.38712389]
[1756944100821,1e-08,4457.8,4457.7,9.86632389]
[1756944101686,1e-08,4457.8,4457.7,9.38712389]
[1756944103616,1e-08,4457.8,4457.7,9.86632389]
[1756944104118,1e-08,4457.8,4457.7,8.61932389]
[1756944104718,1e-08,4457.8,4457.7,9.38712389]
[1756944105218,0.00200001,4457.8,4457.7,9.38712389]
[1756944106019,0.00200001,4457.8,4457.7,9.86632389]
[1756944108332,0.78280001,4457.8,4457.7,7.82732389]
[1756944108535,0.94590001,4457.8,4457.7,6.21720932]
[1756944108702,0.94590001,4457.8,4457.7,7.00920932]
[1756944109134,0.94590001,4457.8,4457.7,10.00920932]
[1756944109938,0.94590001,4457.8,4457.7,6.26020932]
[1756944110118,0.94590001,4457.8,4457.7,10.00920932]
[1756944110322,0.94590001,4457.8,4457.7,9.78430932]
[1756944111625,0.94590001,4457.8,4457.7,6.03530932]
[1756944111936,0.94590001,4457.8,4457.6,1.836]
[1756944112138,2.55696404,4457.8,4457.7,3.749]
[1756944112316,2.51840932,4457.7,4457.6,1.724]
[1756944112515,2.51840932,4457.7,4457.6,5.473]
[1756944112728,3.29770932,4457.7,4457.6,5.473]
[1756944113943,1.0544,4457.7,4457.6,5.473]
[1756944114317,3.29770932,4457.7,4457.6,5.473]
[1756944115817,1.0544,4457.7,4457.6,5.473]
[1756944116009,0.9424,4457.7,4457.6,5.473]
[1756944116407,3.18570932,4457.7,4457.6,5.473]
[1756944118424,3.18570932,4457.7,4457.6,1.724]
[1756944118623,3.18570932,4457.7,4457.6,5.474]
[1756944122949,3.18570932,4457.7,4457.6,5.475]
[1756944125853,3.02260932,4457.7,4457.6,5.475]
[1756944126322,3.18720932,4457.7,4457.6,5.475]
[1756944127058,3.02260932,4457.7,4457.6,5.475]
[1756944132153,2.55350932,4457.7,4457.6,5.475]
[1756944134888,2.24335965,4457.6,4457.1,0.001]
[1756944135185,2.35556097,4457.2,4457.1,0.001]
[1756944135381,5.66984593,4457.2,4457.1,0.001]
[1756944135581,6.58910073,4457.2,4457.1,0.001]
[1756944136181,6.31576097,4457.2,4457.1,0.001]
[1756944136881,8.04076097,4457.2,4457.1,0.001]
[1756944137285,8.31410073,4457.2,4457.1,0.001]
[1756944139469,0.792,4457.0,4456.1,0.001]
[1756944139672,2.2442659,4455.8,4455.3,0.001]
[1756944139873,2.24441701,4455.5,4455.3,0.001]
[1756944140072,9.02100197,4455.5,4455.3,0.001]
[1756944140273,10.33894947,4455.5,4455.3,0.001]
[1756944140862,9.41130971,4455.5,4455.3,0.001]
[1756944144089,2.33440971,4455.5,4455.4,0.7547]
[1756944144274,2.24416596,4456.0,4455.4,1.2239]
[1756944144600,2.24416596,4456.0,4455.5,0.9157]
[1756944144897,3.0,4456.2,4455.5,0.9157]
[1756944145083,2.24422862,4455.9,4455.6,0.9157]
[1756944145279,2.24422862,4455.9,4455.8,0.3072]
[1756944145479,2.24422862,4455.9,4455.8,1.2229]
[1756944145686,2.24417083,4456.0,4455.8,1.2229]
[1756944146074,5.24407388,4456.2,4455.9,0.9157]
[1756944146393,5.24407388,4456.2,4456.1,0.3072]
[1756944146696,2.24441701,4455.5,4455.4,0.001]
[1756944146860,2.24441701,4455.5,4455.4,0.4475]
[1756944147062,2.24441701,4455.5,4455.4,0.7547]
[1756944147465,3.0,4456.2,4455.4,1.2239]
[1756944147697,3.0,4456.2,4455.5,0.9157]
[1756944147902,2.24430955,4455.8,4455.5,0.4692]
[1756944148408,2.24430955,4455.8,4455.7,0.3072]
[1756944148570,2.24430955,4455.8,4455.7,0.7537]
[1756944149205,2.24418253,4456.0,4455.7,0.7537]
[1756944149410,0.025,4456.8,4455.8,0.9157]
[1756944149604,2.24391597,4456.5,4455.9,0.9157]
[1756944149788,2.24391338,4456.5,4456.4,0.3072]
[1756944149990,2.35591338,4456.5,4456.4,0.7453]
[1756944150189,2.35591338,4456.5,4456.4,1.208]
[1756944151484,0.112,4456.5,4456.4,1.208]
[1756944152190,2.35591338,4456.5,4456.4,1.208]
[1756944152391,0.112,4456.5,4456.4,1.208]
[1756944153372,0.025,4456.8,4456.4,1.3288]
[1756944153575,0.025,4456.8,4456.7,0.112]
[1756944153982,0.025,4456.8,4456.7,1.1978]
[1756944158778,0.025,4456.8,4456.6,0.001]
[1756944158779,0.025,4456.8,4456.6,3.789]
[1756944159410,0.025,4456.8,4456.6,4.2271]
[1756944159612,0.025,4456.8,4456.7,0.297]
[1756944159816,2.26876234,4456.8,4456.6,0.001]
[1756944159989,0.137,4456.8,4456.6,0.001]
[1756944160194,0.137,4456.8,4456.7,0.297]
[1756944161289,2.47976234,4456.8,4456.6,0.001]
[1756944162331,2.38076234,4456.8,4456.6,0.001]
[1756944162532,0.137,4456.8,4456.6,0.4391]
[1756944162738,0.137,4456.8,4456.7,1.1978]
[1756944165121,0.025,4456.8,4456.7,1.3098]
[1756944168899,2.26876234,4456.8,4456.6,0.001]
[1756944169098,2.26876234,4456.8,4456.7,3.084]
[1756944169325,2.36776234,4456.8,4456.7,3.084]
[1756944170730,0.025,4456.8,4456.6,0.001]
[1756944172751,0.025,4456.8,4456.7,0.297]
[1756944172930,0.025,4456.8,4456.7,1.3098]
[1756944173254,0.11400001,4457.8,4456.8,0.792]
[1756944173424,0.00200001,4457.8,4457.0,0.792]
[1756944173620,0.00200001,4457.8,4457.5,0.409]
[1756944173825,0.00200001,4457.8,4457.5,4.201]
[1756944174023,0.00200001,4457.8,4457.5,6.44440998]
[1756944174354,0.00200001,4457.8,4457.5,0.8471]
[1756944174571,2.24525937,4457.8,4457.5,3.792]
[1756944174748,0.112,4457.7,4457.5,3.792]
[1756944175253,0.112,4457.7,4457.5,4.089]
[1756944176078,0.114,4457.7,4457.5,4.089]
[1756944176277,0.114,4457.7,4457.5,4.9898]
[1756944176575,0.002,4457.7,4457.5,5.60302356]
[1756944176882,0.002,4457.7,4457.5,7.84643354]
[1756944177529,0.002,4457.7,4457.5,8.63843354]
[1756944177979,0.002,4457.7,4457.5,11.63843354]
[1756944178278,0.002,4457.7,4457.5,11.86333354]
[1756944180286,0.002,4457.7,4457.5,11.63843354]
[1756944181175,0.002,4457.7,4457.5,11.86333354]
[1756944182550,0.00200001,4457.8,4457.7,3.26020932]
[1756944182751,0.00200001,4457.8,4457.7,8.48030166]
[1756944182946,0.00200001,4457.8,4457.7,9.69086857]
[1756944183153,0.00200001,4457.8,4457.7,12.69086857]
[1756944184382,0.00200001,4457.8,4457.7,12.86294033]
[1756944184694,0.00200001,4457.8,4457.7,12.46496857]
[1756944185074,0.00200001,4457.8,4457.7,8.21736857]
[1756944185599,0.00200001,4457.8,4457.7,12.46396857]
[1756944186773,0.00200001,4457.8,4457.7,7.44596857]
[1756944187102,0.00200001,4457.8,4457.7,6.82030932]
[1756944187288,0.00200001,4457.8,4457.7,7.13460932]
[1756944187490,0.00200001,4457.8,4457.7,4.577]
[1756944187703,0.00200001,4457.8,4457.7,7.13460932]
[1756944188402,0.00200001,4457.8,4457.7,7.34376364]
[1756944188701,0.00200001,4457.8,4457.7,1.00115432]
[1756944188887,0.10100001,4457.8,4457.7,3.99215432]
[1756944189085,0.10100001,4457.8,4457.7,0.20915432]
[1756944189281,0.56510001,4457.8,4457.7,3.99215432]
[1756944189486,0.93880001,4457.8,4457.7,3.99215432]
[1756944190408,0.93880001,4457.8,4457.7,0.20915432]
[1756944190705,3.29405901,4457.8,4457.7,3.99115432]
[1756944191227,3.29405901,4457.8,4457.7,3.782]
[1756944192510,0.21300001,4457.8,4457.7,3.782]
[1756944192670,0.00200001,4457.8,4457.7,4.41757478]
[1756944193917,0.00200001,4457.8,4457.7,7.5795841]
[1756944194117,0.00200001,4457.8,4457.7,4.88167478]
[1756944195910,0.00200001,4457.8,4457.7,6.12827478]
[1756944196089,0.00200001,4457.8,4457.7,8.98451158]
[1756944196891,0.00200001,4457.8,4457.7,14.78451158]
[1756944201434,0.00200001,4457.8,4457.7,17.78451158]
[1756944207038,0.00200001,4457.8,4457.7,14.00251158]
[1756944207343,0.00200001,4457.8,4457.7,17.77551158]
[1756944207841,0.00200001,4457.8,4457.7,14.00251158]
[1756944208060,0.00200001,4457.8,4457.7,17.77451158]
[1756944215988,0.00200001,4457.8,4457.7,23.16351158]
[1756944216971,0.00200001,4457.8,4457.7,22.68531158]
[1756944217276,0.00200001,4457.8,4457.7,23.14811158]
[1756944218285,0.00200001,4457.8,4457.7,22.9388368]
[1756944218690,0.00200001,4457.8,4457.7,17.3470368]
[1756944218874,0.00200001,4457.8,4457.7,22.8248368]
[1756944219302,0.00200001,4457.8,4457.7,19.0588368]
[1756944219499,0.00200001,4457.8,4457.7,18.1390368]
[1756944219668,0.00200001,4457.8,4457.7,22.3620368]
[1756944219874,0.00200001,4457.8,4457.7,22.8248368]
[1756944223001,1e-08,4458.1,4458.0,3.03515836]
[1756944223167,1e-08,4458.1,4458.0,11.54558994]
[1756944223366,1e-08,4458.1,4458.0,12.74475836]
[1756944223567,1e-08,4458.1,4458.0,18.63462571]
[1756944223864,1e-08,4458.5,4458.4,6.03495711]
[1756944224060,1e-08,4458.5,4458.4,10.70245282]
[1756944224293,1e-08,4458.5,4458.4,11.92405282]
[1756944224492,1e-08,4458.5,4458.4,17.72405282]
[1756944228429,1e-08,4458.5,4458.4,12.73845282]
[1756944228581,1e-08,4458.5,4458.4,16.49945282]
[1756944228782,0.09900001,4458.5,4458.4,12.85045282]
[1756944228988,0.09900001,4458.5,4458.4,16.61145282]
[1756944229407,0.09900001,4458.5,4458.4,12.05845282]
[1756944229606,1e-08,4458.5,4458.4,15.81945282]
[1756944229907,1e-08,4458.5,4458.4,16.61145282]
[1756944230489,0.09900001,4458.5,4458.4,16.61145282]
[1756944231610,0.09900001,4458.5,4458.4,16.60606434]
[1756944232308,1e-08,4458.5,4458.4,16.60606434]
[1756944233689,1e-08,4458.5,4458.4,16.90786434]
[1756944234009,1e-08,4458.5,4458.4,17.82766434]
[1756944236218,1e-08,4458.5,4458.4,16.60306434]
[1756944237310,1e-08,4458.5,4458.4,16.90486434]
[1756944237513,1e-08,4458.5,4458.4,16.90386434]
[1756944237687,1e-08,4458.5,4458.4,17.36086434]
[1756944239019,1e-08,4458.5,4458.4,17.82366434]
[1756944241697,1e-08,4458.5,4458.4,16.90386434]
[1756944241915,1e-08,4458.5,4458.4,16.60206434]
[1756944242422,1e-08,4458.5,4458.4,17.84406434]
[1756944243326,1e-08,4458.5,4458.4,17.93392765]
[1756944246028,0.002,4459.0,4458.9,6.0347056]
[1756944246195,1e-08,4459.2,4459.1,3.034605]
[1756944246524,1e-08,4459.2,4459.1,9.789605]
[1756944246706,1e-08,4459.2,4459.1,15.99045357]
[1756944247324,1e-08,4459.2,4459.1,15.590605]
[1756944247502,1e-08,4459.2,4459.1,17.64031088]
[1756944248223,1e-08,4459.2,4459.1,17.95131088]
[1756944248411,1e-08,4459.2,4459.1,18.39741088]
[1756944248803,1e-08,4459.2,4459.1,13.88431088]
[1756944249132,0.09900001,4459.2,4459.1,17.64031088]
[1756944250022,0.09900001,4459.2,4459.1,13.88431088]
[1756944250205,0.09900001,4459.2,4459.1,17.63931088]
[1756944250725,1e-08,4459.2,4459.1,17.63931088]
[1756944251234,0.60090001,4459.2,4459.1,10.09231088]
[1756944251401,0.60090001,4459.2,4459.1,11.797605]
[1756944251402,0.97190001,4459.2,4459.1,11.797605]
[1756944251593,0.97190001,4459.2,4459.1,15.589605]
[1756944252031,0.60090001,4459.2,4459.1,12.589605]
[1756944252232,0.60090001,4459.2,4459.1,15.589605]
[1756944252543,0.60090001,4459.2,4459.1,11.834605]
[1756944252707,0.97190001,4459.2,4459.1,15.589605]
[1756944254504,0.60090001,4459.2,4459.1,15.589605]
[1756944255840,0.60090001,4459.2,4459.1,11.834605]
[1756944256046,0.97190001,4459.2,4459.1,5.997605]
[1756944256555,0.97190001,4459.2,4459.1,6.789605]
[1756944257547,0.97190001,4459.2,4459.1,3.755]
[1756944263442,0.97190001,4459.2,4459.1,3.756]
[1756944263745,0.60090001,4459.2,4459.1,3.756]
[1756944263918,0.10170001,4459.2,4459.1,5.998605]
[1756944264431,0.10170001,4459.2,4459.1,3.756]
[1756944267169,0.60090001,4459.2,4459.1,3.756]
[1756944269073,0.97190001,4459.2,4459.1,3.756]
[1756944271652,0.60090001,4459.2,4459.1,3.756]
[1756944277284,0.10170001,4459.2,4459.1,3.756]
[1756944279593,6.21223968,4459.2,4459.1,0.001]
[1756944279886,2.242605,4459.1,4458.6,0.001]
[1756944280086,2.35480619,4458.7,4458.6,0.001]
[1756944280257,2.46479115,4458.7,4458.6,0.001]
[1756944280454,6.32449115,4458.7,4458.6,0.001]
[1756944280659,6.59220209,4458.7,4458.6,0.001]
[1756944280997,6.31890619,4458.7,4458.6,0.001]
[1756944281764,5.95060619,4458.7,4458.6,0.001]
[1756944282264,5.45920619,4458.7,4458.6,0.001]
[1756944282466,1e-08,4459.2,4458.6,4.053]
[1756944282467,0.112,4459.0,4458.6,4.053]
[1756944282657,0.112,4459.0,4458.6,4.526]
[1756944283055,0.112,4459.0,4458.6,4.053]
[1756944283259,0.112,4459.0,4458.7,0.473]
[1756944283759,0.112,4459.0,4458.6,3.757]
[1756944283959,0.112,4459.0,4458.7,0.473]
[1756944284186,0.112,4459.0,4458.6,3.757]
[1756944284394,0.112,4459.0,4458.6,4.23]
[1756944284792,0.112,4459.0,4458.7,0.473]
[1756944287665,1e-08,4459.2,4458.9,0.296]
[1756944287864,1e-08,4459.2,4459.0,3.756]
[1756944288065,1e-08,4459.2,4459.0,4.7155]
[1756944288293,1e-08,4459.2,4459.1,1.2555]
[1756944289284,1e-08,4459.2,4459.0,3.756]
[1756944289485,2.24274058,4458.9,4458.6,0.001]
[1756944289686,0.4914,4459.1,4458.7,3.756]
[1756944289687,2.35466781,4459.0,4458.7,3.756]
[1756944292508,2.24270824,4458.9,4458.7,3.756]
[1756944293906,0.112,4459.0,4458.7,3.756]
[1756944294202,2.35467245,4459.0,4458.7,3.756]
[1756944297312,2.35467245,4459.0,4458.7,4.229]
[1756944299005,2.35467245,4459.0,4458.7,3.756]
[1756944299208,2.35467245,4459.0,4458.7,4.229]
[1756944301979,2.7003056,4458.9,4458.6,0.001]
[1756944302185,2.35480619,4458.7,4458.6,3.757]
[1756944302400,3.11610619,4458.7,4458.6,0.001]
[1756944304318,3.06650619,4458.7,4458.6,0.001]
[1756944304485,2.60890619,4458.7,4458.6,0.001]
[1756944304680,0.112,4458.7,4458.6,0.001]
[1756944304880,0.112,4458.7,4458.6,1.2197]
[1756944305080,0.002,4459.1,4458.6,1.2197]
[1756944305286,0.112,4459.0,4458.7,0.9169]
[1756944305481,0.112,4459.0,4458.9,0.3018]
[1756944305887,0.112,4459.0,4458.9,0.7686]
[1756944306414,0.112,4459.0,4458.9,1.2187]
[1756944307404,0.002,4459.1,4458.9,1.2187]
[1756944307605,0.002,4459.1,4458.9,0.3018]
[1756944307803,0.002,4459.1,4459.0,0.9169]
[1756944308201,0.002,4459.1,4459.0,1.2187]
[1756944308587,0.002,4459.1,4459.0,0.7686]
[1756944308992,0.002,4459.1,4459.0,1.2187]
[1756944311518,0.10658496,4459.1,4458.6,0.001]
[1756944311719,2.35480619,4458.7,4458.6,0.001]
[1756944312094,2.91410619,4458.7,4458.6,0.001]
[1756944312314,2.45650619,4458.7,4458.6,0.001]
[1756944312523,0.112,4458.7,4458.6,1.2197]
[1756944312696,0.112,4459.0,4458.6,1.71727]
[1756944312886,0.112,4459.0,4458.7,0.9169]
[1756944313087,2.24270818,4458.9,4458.8,3.755]
[1756944313318,2.34170818,4458.9,4458.8,3.755]
[1756944313911,0.099,4458.9,4458.8,3.755]
[1756944314523,0.112,4459.0,4458.8,4.0568]
[1756944314727,0.112,4459.0,4458.8,4.5236]
[1756944315791,2.35465646,4459.0,4458.8,4.5236]
[1756944316423,0.112,4459.0,4458.9,0.4668]
[1756944316620,0.112,4459.0,4458.9,1.2187]
[1756944316802,0.112,4459.0,4458.9,0.7686]
[1756944317002,2.3546553,4459.0,4458.9,0.3018]
[1756944317228,2.3546553,4459.0,4458.8,3.755]
[1756944317427,0.112,4459.0,4458.8,3.755]
[1756944318004,0.112,4459.0,4458.8,4.2218]
[1756944318230,0.112,4459.0,4458.9,0.3018]
[1756944318428,0.112,4459.0,4458.9,0.7519]
[1756944318632,0.002,4459.1,4458.9,1.2187]
[1756944318799,0.002,4459.1,4458.9,0.7519]
[1756944319000,0.002,4459.1,4459.0,0.4668]
[1756944319202,2.2426628,4459.0,4458.9,3.755]
[1756944319396,2.5463628,4459.0,4458.9,3.755]
[1756944319730,0.3037,4459.0,4458.9,3.755]
[1756944319934,0.002,4459.1,4458.9,3.755]
[1756944320347,2.24460797,4459.1,4458.9,3.755]
[1756944320546,2.2426553,4459.0,4458.9,3.755]
[1756944320905,0.002,4459.1,4458.9,4.0568]
[1756944321199,2.24461616,4459.1,4458.7,3.755]
[1756944321403,0.002,4459.1,4458.7,3.755]
[1756944321616,0.002,4459.1,4459.0,0.3018]
[1756944321810,0.002,4459.1,4458.7,3.755]
[1756944322605,2.2426553,4459.0,4458.7,3.755]
[1756944323337,0.002,4459.1,4458.7,3.755]
[1756944323338,2.24460918,4459.1,4458.7,3.755]
[1756944323631,2.24460918,4459.1,4458.7,4.2218]
[1756944324736,2.24460918,4459.1,4458.7,3.755]
[1756944324936,0.002,4459.1,4459.0,0.3018]
[1756944325239,0.002,4459.1,4459.0,0.7686]
[1756944325818,0.002,4459.1,4459.0,4.9737]
[1756944331223,0.002,4459.1,4459.0,7.2163553]
[1756944331417,0.002,4459.1,4459.0,4.9737]
[1756944332915,0.002,4459.1,4459.0,4.5236]
[1756944333319,0.002,4459.1,4459.0,10.2771153]
[1756944333562,0.002,4459.1,4459.0,10.47897941]
[1756944333844,0.002,4459.1,4459.0,10.3891153]
[1756944334345,0.002,4459.1,4459.0,16.1891153]
[1756944337515,0.002,4459.1,4459.0,19.1891153]
[1756944345533,0.002,4459.1,4459.0,15.4341153]
[1756944345759,0.002,4459.1,4459.0,19.1881153]
[1756944349563,1e-08,4459.2,4459.1,6.034605]
[1756944349766,1e-08,4459.2,4459.1,9.1274909]
[1756944349934,1e-08,4459.2,4459.1,9.4317909]
[1756944350136,1e-08,4459.2,4459.1,15.2317909]
[1756944350964,1e-08,4459.2,4459.1,15.32164634]
[1756944359042,0.002,4459.4,4459.3,3.03450442]
[1756944359355,0.002,4459.4,4459.3,6.80992946]
[1756944359557,0.002,4459.4,4459.3,7.20380442]
[1756944359761,0.002,4459.4,4459.3,13.95360442]
[1756944360272,1e-08,4459.8,4459.7,3.03430329]
[1756944360448,1e-08,4459.8,4459.7,9.78730329]
[1756944360653,1e-08,4459.8,4459.7,11.12360329]
[1756944361052,0.4966,4461.3,4459.9,3.25880273]
[1756944361357,0.8731,4461.6,4460.7,6.03380061]
[1756944361673,0.8731,4461.6,4460.7,16.70596788]
[1756944362052,0.4966,4461.3,4460.7,16.41436788]
[1756944362255,0.3108,4460.8,4460.7,16.41436788]
[1756944363244,0.025,4460.8,4460.7,16.41436788]
[1756944364377,0.124,4460.8,4460.7,16.41436788]
[1756944366163,0.124,4460.8,4460.7,12.66136788]
[1756944366368,0.6206,4460.8,4460.7,16.41336788]